bitfinex-derivatives/quotes_BTCF0:USTF0_20250602
["timestamp","ask_amount","ask_price","bid_price","bid_amount"]
[1748868455555,0.26197294,104320.0,104310.0,1.11414953]
[1748868455764,0.00524954,104320.0,104310.0,1.26145916]
[1748868457654,0.00424954,104320.0,104310.0,1.26145916]
[1748868457854,0.00424954,104320.0,104310.0,1.26245916]
[1748868458363,0.00524954,104320.0,104310.0,1.26245916]
[1748868458951,0.00424954,104320.0,104310.0,1.26245916]
[1748868461857,0.19587294,104320.0,104310.0,1.26245916]
[1748868462158,0.19587294,104320.0,104310.0,0.67210953]
[1748868462363,0.19587294,104320.0,104310.0,0.85842953]
[1748868462563,0.19587294,104320.0,104310.0,0.85822953]
[1748868462764,0.19587294,104320.0,104310.0,0.85842953]
[1748868463162,0.19587294,104320.0,104310.0,1.00573916]
[1748868464165,0.19587294,104320.0,104310.0,0.31130953]
[1748868464462,0.19687294,104320.0,104310.0,0.85742953]
[1748868465256,0.19787294,104320.0,104310.0,0.85742953]
[1748868466864,0.19787294,104320.0,104310.0,1.00473916]
[1748868469566,0.00624954,104320.0,104310.0,1.51284879]
[1748868470461,0.00524954,104320.0,104310.0,1.51284879]
[1748868470666,0.00424954,104320.0,104310.0,1.51384879]
[1748868471170,0.00424954,104320.0,104310.0,1.51284879]
[1748868471369,0.00424954,104320.0,104310.0,1.51684879]
[1748868472065,0.00424954,104320.0,104310.0,1.36953916]
[1748868475272,0.19587294,104320.0,104310.0,0.92653916]
[1748868475468,0.19587294,104320.0,104310.0,0.82241916]
[1748868475672,0.19587294,104320.0,104310.0,1.36929916]
[1748868475875,0.00424954,104320.0,104310.0,1.36949916]
[1748868476870,0.00424954,104320.0,104310.0,1.36849916]
[1748868477179,0.00424954,104320.0,104310.0,1.36649916]
[1748868477362,0.00424954,104320.0,104310.0,1.21918953]
[1748868477567,0.19587294,104320.0,104310.0,1.36649916]
[1748868477768,0.00424954,104320.0,104310.0,1.36649916]
[1748868480873,0.00424954,104320.0,104310.0,1.21918953]
[1748868481067,0.00424954,104320.0,104310.0,1.36549916]
[1748868481272,0.00424954,104320.0,104310.0,1.36649916]
[1748868481667,0.00424954,104320.0,104310.0,1.21918953]
[1748868481864,0.00424954,104320.0,104310.0,1.36649916]
[1748868483069,0.00424954,104320.0,104310.0,1.51380879]
[1748868484477,0.00424954,104320.0,104310.0,1.51680879]
[1748868485384,0.00424954,104320.0,104310.0,1.36949916]
[1748868486578,0.00424954,104320.0,104310.0,1.36749916]
[1748868487380,0.00424954,104320.0,104310.0,1.51480879]
[1748868487682,0.00424954,104320.0,104310.0,1.51380879]
[1748868491487,0.00424954,104320.0,104310.0,1.36649916]
[1748868492484,0.19587294,104320.0,104310.0,0.77622953]
[1748868492679,0.00424954,104320.0,104310.0,0.67210953]
[1748868492874,0.19587294,104320.0,104310.0,0.57770953]
[1748868493078,0.76678257,104320.0,104310.0,0.65962953]
[1748868493279,0.40598257,104320.0,104310.0,0.65982953]
[1748868493582,0.61947294,104320.0,104310.0,0.65982953]
[1748868493781,0.25867294,104320.0,104310.0,1.30481916]
[1748868493978,0.25867294,104320.0,104310.0,1.36781916]
[1748868494382,0.25867294,104320.0,104310.0,1.36681916]
[1748868494592,0.26367294,104320.0,104310.0,1.36681916]
[1748868494982,0.03924954,104320.0,104310.0,1.36681916]
[1748868495288,0.03924954,104320.0,104310.0,0.81981916]
[1748868495289,0.22887294,104320.0,104310.0,0.81981916]
[1748868495490,0.22887294,104320.0,104310.0,1.36681916]
[1748868495789,0.22887294,104320.0,104310.0,1.38119916]
[1748868496989,0.22687294,104320.0,104310.0,1.38219916]
[1748868501695,0.19587294,104320.0,104310.0,1.52950879]
[1748868501993,0.19587294,104320.0,104310.0,1.38219916]
[1748868502194,0.19587294,104320.0,104310.0,1.23488953]
[1748868502385,0.25927294,104320.0,104310.0,1.02139916]
[1748868502586,0.25927294,104320.0,104310.0,1.02119916]
[1748868502781,0.25927294,104320.0,104310.0,1.02139916]
[1748868502987,0.29047294,104320.0,104310.0,0.84348953]
[1748868503188,0.29047294,104320.0,104310.0,0.84328953]
[1748868503387,0.29047294,104320.0,104310.0,0.84348953]
[1748868504593,0.29047294,104320.0,104310.0,0.40056953]
[1748868504797,0.29047294,104320.0,104310.0,0.84348953]
[1748868505201,0.29047294,104320.0,104310.0,0.84328953]
[1748868505504,0.29047294,104320.0,104310.0,0.84348953]
[1748868506595,0.29047294,104320.0,104310.0,0.99079916]
[1748868506986,0.79858257,104320.0,104310.0,0.05509282]
[1748868507185,0.79858257,104320.0,104310.0,0.05489282]
[1748868507393,0.79858257,104320.0,104310.0,0.24673452]
[1748868507692,0.79858257,104320.0,104310.0,0.24653452]
[1748868507894,0.79858257,104320.0,104310.0,0.24673452]
[1748868508791,0.65127294,104320.0,104310.0,0.24673452]
[1748868511994,0.79858257,104320.0,104310.0,0.4585]
[1748868512306,0.79858257,104320.0,104310.0,0.6501418]
[1748868514100,0.79858257,104320.0,104310.0,0.2072218]
[1748868514485,0.79858257,104320.0,104310.0,0.01558]
[1748868516697,0.99444657,104320.0,104310.0,0.0077265]
[1748868517084,0.99444657,104320.0,104310.0,0.0075265]
[1748868517288,0.99444657,104320.0,104310.0,0.0077265]
[1748868517494,1.02822797,104320.0,104310.0,0.0077265]
[1748868518598,0.99444657,104320.0,104310.0,0.0077265]
[1748868519493,0.89858257,104320.0,104310.0,0.0077265]
[1748868519886,0.99444657,104320.0,104310.0,0.0077265]
[1748868520091,0.99444657,104320.0,104310.0,0.0075265]
[1748868520402,0.99444657,104320.0,104310.0,0.0077265]
[1748868520701,1.48664657,104320.0,104310.0,0.0075265]
[1748868520995,1.48664657,104320.0,104310.0,0.0077265]
[1748868521494,1.52357404,104320.0,104310.0,0.0067265]
[1748868521689,1.52757404,104320.0,104310.0,0.0067265]
[1748868522595,1.42771004,104320.0,104310.0,0.0067265]
[1748868522793,1.43171004,104320.0,104310.0,0.0067265]
[1748868522999,1.52757404,104320.0,104310.0,0.0067265]
[1748868523899,1.82673068,104320.0,104310.0,0.0067265]
[1748868524098,1.82473068,104320.0,104310.0,0.0067265]
[1748868524299,2.22404031,104320.0,104300.0,0.00014371]
[1748868524602,1.48860106,104310.0,104300.0,1e-08]
[1748868524893,1.8877577,104310.0,104300.0,1e-08]
[1748868525099,0.2916601,104300.0,104290.0,0.00154146]
[1748868525296,0.89656973,104300.0,104290.0,0.00154146]
[1748868525796,0.99244973,104300.0,104290.0,0.00174146]
[1748868525990,1.29160637,104300.0,104290.0,0.00174146]
[1748868526689,1.29260637,104300.0,104290.0,0.0002]
[1748868526895,0.1916785,104290.0,104280.0,0.04929139]
[1748868527198,0.97470925,104290.0,104280.0,0.04929139]
[1748868528390,0.97470925,104290.0,104280.0,0.05029139]
[1748868528593,0.76558813,104290.0,104280.0,0.05029139]
[1748868529497,0.76558813,104290.0,104280.0,0.03164371]
[1748868529701,0.76558813,104290.0,104280.0,0.03184371]
[1748868529888,0.96966813,104290.0,104280.0,0.00134371]
[1748868530092,0.96966813,104290.0,104280.0,0.00114371]
[1748868530293,0.96966813,104290.0,104280.0,0.00134371]
[1748868530506,0.97391767,104290.0,104280.0,0.00134371]
[1748868530803,1.06980967,104290.0,104280.0,0.00134371]
[1748868531196,1.06980967,104290.0,104280.0,0.00114371]
[1748868531597,0.97391767,104290.0,104280.0,0.00134371]
[1748868532108,1.41695767,104290.0,104280.0,0.00134371]
[1748868532603,1.45027439,104290.0,104280.0,0.00134371]
[1748868533201,1.48287439,104290.0,104280.0,0.00134371]
[1748868533800,1.57876639,104290.0,104280.0,0.00134371]
[1748868534900,1.58076639,104290.0,104280.0,0.00034371]
[1748868535104,1.58476639,104290.0,104280.0,0.00034371]
[1748868537503,1.55144967,104290.0,104280.0,0.00034371]
[1748868537705,1.00432967,104290.0,104280.0,0.03084371]
[1748868537910,1.51838967,104290.0,104280.0,0.06274371]
[1748868538110,0.97122967,104290.0,104280.0,0.09294371]
[1748868538309,1.51838967,104290.0,104280.0,0.09294371]
[1748868538512,1.45379767,104290.0,104280.0,0.09294371]
[1748868540314,1.45279767,104290.0,104280.0,0.09294371]
[1748868540815,1.45279767,104290.0,104280.0,0.06465371]
[1748868541509,1.48654822,104290.0,104280.0,0.00225371]
[1748868541718,1.48654822,104290.0,104280.0,0.00205371]
[1748868542299,1.48654822,104290.0,104280.0,0.00225371]
[1748868543618,1.69540271,104290.0,104280.0,0.00225371]
[1748868544115,1.48654822,104290.0,104280.0,0.00225371]
[1748868544316,1.63385785,104290.0,104280.0,0.00225371]
[1748868545007,1.48654822,104290.0,104280.0,0.00225371]
[1748868545323,1.33923859,104290.0,104280.0,0.03505371]
[1748868545512,1.48654822,104290.0,104280.0,0.03444453]
[1748868545912,1.48654822,104290.0,104280.0,0.03417875]
[1748868547110,1.45279767,104290.0,104280.0,0.03417875]
[1748868547313,1.45279767,104290.0,104280.0,0.09857875]
[1748868548822,1.4870413,104290.0,104280.0,0.09857875]
[1748868550414,1.4870413,104290.0,104280.0,0.06737875]
[1748868551725,0.9398813,104290.0,104280.0,0.06737875]
[1748868551927,1.4870413,104290.0,104280.0,0.06737875]
[1748868552426,1.33973167,104290.0,104280.0,0.06737875]
[1748868552621,1.4870413,104290.0,104280.0,0.06737875]
[1748868553028,1.78540486,104290.0,104280.0,0.06737875]
[1748868555423,1.78540486,104290.0,104280.0,0.05613213]
[1748868556429,1.4870413,104290.0,104280.0,0.05613213]
[1748868556631,1.78668145,104290.0,104280.0,0.05613213]
[1748868558137,1.4870413,104290.0,104280.0,0.05613213]
[1748868558835,1.87560964,104290.0,104280.0,0.0319845]
[1748868559840,0.1916969,104280.0,104270.0,0.06279578]
[1748868560044,0.89550653,104280.0,104270.0,0.06279578]
[1748868560343,0.1917153,104270.0,104260.0,0.02431797]
[1748868560538,0.1917337,104260.0,104250.0,0.8826668]
[1748868560733,0.1917337,104260.0,104250.0,0.2396731]
[1748868560734,0.54889401,104260.0,104250.0,0.2396731]
[1748868561039,0.54889401,104260.0,104250.0,0.23458513]
[1748868561244,0.54889401,104260.0,104250.0,0.2644842]
[1748868561743,0.54889401,104260.0,104250.0,0.2664842]
[1748868561936,0.54889401,104260.0,104250.0,0.2986842]
[1748868562644,0.41474368,104260.0,104250.0,0.3006842]
[1748868562836,0.62459436,104260.0,104250.0,0.3006842]
[1748868563632,0.47728473,104260.0,104250.0,0.79391383]
[1748868563840,0.1917336,104260.0,104250.0,1.15471383]
[1748868564446,0.69647001,104270.0,104260.0,0.1917336]
[1748868564738,0.85838779,104270.0,104260.0,0.37124323]
[1748868565150,0.85838779,104270.0,104260.0,0.81428323]
[1748868566141,0.49758779,104270.0,104260.0,0.91836323]
[1748868566534,0.49758779,104270.0,104260.0,0.91936323]
[1748868566937,0.49758779,104270.0,104260.0,0.88817524]
[1748868567136,0.5733035,104270.0,104260.0,0.88817524]
[1748868567339,0.20999439,104270.0,104260.0,1.59488324]
[1748868567845,0.19185901,104270.0,104260.0,1.59488324]
[1748868568149,0.19185901,104270.0,104260.0,1.44777361]
[1748868568451,0.00014371,104270.0,104260.0,1.44777361]
[1748868568641,0.00014371,104270.0,104260.0,1.59508324]
[1748868569042,1e-08,104270.0,104260.0,1.57325336]
[1748868569244,1e-08,104270.0,104260.0,1.02613336]
[1748868569446,1e-08,104270.0,104260.0,1.57325336]
[1748868570749,1e-08,104270.0,104260.0,1.57321336]
[1748868573250,1e-08,104270.0,104260.0,1.42590373]
[1748868573441,1e-08,104270.0,104260.0,1.57321336]
[1748868576146,1e-08,104270.0,104260.0,1.42590373]
[1748868576449,1e-08,104270.0,104260.0,1.57321336]
[1748868576450,0.00424955,104270.0,104260.0,1.57321336]
[1748868577146,0.00424955,104270.0,104260.0,1.32321336]
[1748868577843,0.00424955,104270.0,104260.0,1.57321336]
[1748868578542,0.00424955,104270.0,104260.0,1.32321336]
[1748868580355,0.00424955,104270.0,104260.0,1.32317336]
[1748868584659,0.34327448,104270.0,104260.0,0.27615573]
[1748868584863,0.43877448,104270.0,104260.0,0.71907573]
[1748868585061,0.29146485,104270.0,104260.0,0.71887573]
[1748868585251,0.09974955,104270.0,104260.0,1.22718536]
[1748868585565,0.00424955,104270.0,104260.0,1.22718536]
[1748868585755,0.19596485,104270.0,104260.0,1.22718536]
[1748868586353,0.22726485,104270.0,104260.0,1.22718536]
[1748868587564,0.25856485,104270.0,104260.0,1.22718536]
[1748868587765,0.25856485,104270.0,104260.0,0.78426536]
[1748868587955,0.29126485,104270.0,104260.0,1.22718536]
[1748868588156,0.29126485,104270.0,104260.0,1.07987573]
[1748868589659,0.29126485,104270.0,104260.0,1.11087573]
[1748868592562,0.29126485,104270.0,104260.0,1.14097573]
[1748868593162,0.29126485,104270.0,104260.0,1.28828536]
[1748868593565,0.29126485,104270.0,104260.0,0.74132536]
[1748868593566,0.09954955,104270.0,104260.0,0.74132536]
[1748868593766,0.29126485,104270.0,104260.0,1.28828536]
[1748868594472,0.09954955,104270.0,104260.0,1.28828536]
[1748868599871,0.09954955,104270.0,104260.0,0.84536536]
[1748868600068,0.09954955,104270.0,104260.0,1.28832536]
[1748868600274,0.09954955,104270.0,104260.0,1.14101573]
[1748868600487,0.09954955,104270.0,104260.0,1.28832536]
[1748868600774,0.09954955,104270.0,104260.0,1.11087573]
[1748868601168,0.29126475,104270.0,104260.0,0.53291573]
[1748868601369,0.29126475,104270.0,104260.0,1.07987573]
[1748868601568,0.43857438,104270.0,104260.0,1.07967573]
[1748868601868,0.43857438,104270.0,104260.0,1.07987573]
[1748868602073,0.43857438,104270.0,104260.0,0.63695573]
[1748868602271,0.43857438,104270.0,104260.0,1.07987573]
[1748868602272,0.29126475,104270.0,104260.0,1.07987573]
[1748868603176,0.09954955,104270.0,104260.0,1.22718536]
[1748868603377,0.09954955,104270.0,104260.0,1.29068536]
[1748868604774,0.29126485,104270.0,104260.0,1.29068536]
[1748868608482,0.29126485,104270.0,104260.0,1.26028536]
[1748868609570,0.29126485,104270.0,104260.0,1.11297573]
[1748868610584,0.29126485,104270.0,104260.0,0.53291573]
[1748868610874,0.43857448,104270.0,104260.0,0.53291573]
[1748868611080,0.43857448,104270.0,104260.0,1.07967573]
[1748868611271,0.43857448,104270.0,104260.0,1.07987573]
[1748868611473,0.43857448,104270.0,104260.0,0.53291573]
[1748868611886,0.43857448,104270.0,104260.0,1.07987573]
[1748868612476,0.43857448,104270.0,104260.0,1.04767573]
[1748868612676,0.43857448,104270.0,104260.0,1.04747573]
[1748868612877,0.43857448,104270.0,104260.0,1.04767573]
[1748868615477,0.64842516,104270.0,104260.0,1.04767573]
[1748868621077,0.50111553,104270.0,104260.0,1.07957573]
[1748868621793,0.50111553,104270.0,104260.0,0.71877573]
[1748868622088,0.50111553,104270.0,104260.0,1.07957573]
[1748868622288,0.50111553,104270.0,104260.0,0.63665573]
[1748868622491,0.50111553,104270.0,104260.0,1.07953573]
[1748868623790,0.29126485,104270.0,104260.0,1.07953573]
[1748868624683,0.50111553,104270.0,104260.0,1.07953573]
[1748868625084,0.50111553,104270.0,104260.0,0.63665573]
[1748868625281,0.50111553,104270.0,104260.0,1.07953573]
[1748868626395,0.29126485,104270.0,104260.0,1.07953573]
[1748868627590,0.29126485,104270.0,104260.0,1.11253573]
[1748868628798,0.29126485,104270.0,104260.0,0.75173573]
[1748868630394,0.29126485,104270.0,104260.0,0.20481573]
[1748868630593,0.43857448,104270.0,104260.0,0.71873573]
[1748868630793,0.43857448,104270.0,104260.0,0.17181573]
[1748868630997,0.43857448,104270.0,104260.0,0.68683573]
[1748868631585,0.64842516,104270.0,104260.0,0.68683573]
[1748868631986,0.64842516,104270.0,104260.0,0.68679573]
[1748868633399,0.66787793,104270.0,104260.0,0.68679573]
[1748868634096,0.66787793,104270.0,104260.0,0.24395573]
[1748868634298,1.02867793,104270.0,104260.0,0.24395573]
[1748868634800,1.02867793,104270.0,104260.0,0.10524]
[1748868635096,1.02867793,104270.0,104260.0,0.2969737]
[1748868638186,1.02867793,104270.0,104260.0,0.10524]
[1748868638389,1.02867793,104270.0,104260.0,0.54808]
[1748868638688,1.02867793,104270.0,104260.0,0.0012]
[1748868638884,0.91882725,104270.0,104260.0,0.0012]
[1748868639091,0.91882725,104270.0,104260.0,0.001]
[1748868639292,0.91882725,104270.0,104260.0,0.0012]
[1748868640083,1.12851211,104270.0,104260.0,0.0012]
[1748868640291,0.91882725,104270.0,104260.0,0.0012]
[1748868641599,0.91882725,104270.0,104260.0,0.001]
[1748868641898,0.91882725,104270.0,104260.0,0.0012]
[1748868642099,0.91882725,104270.0,104260.0,0.001]
[1748868642398,0.91882725,104270.0,104260.0,0.0012]
[1748868642588,0.91882725,104270.0,104260.0,0.01558]
[1748868643291,0.91982725,104270.0,104260.0,0.01458]
[1748868643692,0.92082725,104270.0,104260.0,0.01458]
[1748868644815,1.41302725,104270.0,104260.0,0.01458]
[1748868645099,1.62258574,104270.0,104260.0,0.01458]
[1748868645301,1.62250743,104270.0,104260.0,0.01458]
[1748868645893,1.83195881,104270.0,104260.0,0.01458]
[1748868646295,1.62250743,104270.0,104260.0,0.01458]
[1748868646497,1.92230023,104270.0,104260.0,0.01458]
[1748868648099,1.71282005,104270.0,104260.0,0.01458]
[1748868649205,1.41302725,104270.0,104260.0,0.01458]
[1748868651301,1.92017704,104270.0,104260.0,0.01458]
[1748868652108,2.21996984,104270.0,104260.0,0.00910676]
[1748868654004,1.92017704,104270.0,104260.0,0.00910676]
[1748868657101,2.36297704,104270.0,104260.0,0.00910676]
[1748868658010,2.06835546,104270.0,104260.0,0.00910676]
[1748868658208,2.36297704,104270.0,104260.0,0.00910676]
[1748868659008,2.21996984,104270.0,104260.0,0.00910676]
[1748868659611,2.21996984,104270.0,104260.0,0.04240676]
[1748868662108,1.92017704,104270.0,104260.0,0.04240676]
[1748868662618,0.291733,104260.0,104250.0,0.0001437]
[1748868662800,1.18986537,104260.0,104250.0,0.0001437]
[1748868663002,1.29382537,104260.0,104250.0,0.0001437]
[1748868663411,1.29382537,104260.0,104250.0,0.0003437]
[1748868663707,1.29382537,104260.0,104250.0,0.0001437]
[1748868664008,1.29382537,104260.0,104250.0,0.0003437]
[1748868664512,1.59361817,104260.0,104250.0,0.0003437]
[1748868664708,1.29382537,104260.0,104250.0,0.0003437]
[1748868665315,1.14657406,104260.0,104250.0,0.0003437]
[1748868666212,1.15057406,104260.0,104250.0,0.0003437]
[1748868667320,1.15157406,104260.0,104250.0,0.0003437]
[1748868668013,1.5401424,104260.0,104250.0,0.0003437]
[1748868668601,0.1917514,104250.0,104240.0,0.0305]
[1748868668808,0.1917698,104240.0,104230.0,0.08373065]
[1748868669004,0.79161033,104240.0,104230.0,0.11373065]
[1748868670314,0.79261033,104240.0,104230.0,0.11373065]
[1748868671312,0.89261033,104240.0,104230.0,0.08193065]
[1748868671614,0.89261033,104240.0,104230.0,0.06421072]
[1748868671925,0.89261033,104240.0,104230.0,0.00231072]
[1748868671926,1.10313567,104240.0,104230.0,0.00231072]
[1748868672222,0.99757033,104240.0,104230.0,0.00231072]
[1748868672608,1.01510719,104240.0,104230.0,0.00211072]
[1748868672810,1.01510719,104240.0,104230.0,0.00231072]
[1748868674209,1.31451233,104240.0,104230.0,0.00231072]
[1748868676608,1.6099718,104240.0,104230.0,0.00231072]
[1748868676821,1.0632118,104240.0,104230.0,0.01670072]
[1748868677012,1.21055233,104240.0,104230.0,0.01670072]
[1748868677510,1.53787494,104240.0,104230.0,0.01670072]
[1748868677811,1.58521547,104240.0,104230.0,0.23938842]
[1748868678022,1.0772698,104240.0,104230.0,0.27048842]
[1748868678210,1.22461033,104240.0,104230.0,0.27048842]
[1748868680902,1.22885987,104240.0,104230.0,0.27048842]
[1748868682919,1.22885987,104240.0,104230.0,0.07870072]
[1748868683114,1.26055987,104240.0,104230.0,0.07870072]
[1748868683413,1.59126501,104240.0,104230.0,0.11080072]
[1748868684514,1.29185987,104240.0,104230.0,0.11080072]
[1748868684710,1.59080314,104240.0,104230.0,0.11080072]
[1748868686918,1.29185987,104240.0,104230.0,0.11080072]
[1748868690619,1.14451934,104240.0,104230.0,0.30258882]
[1748868690823,1.05101934,104240.0,104230.0,0.30258882]
[1748868691025,1.19835987,104240.0,104230.0,0.30258882]
[1748868691724,1.58692821,104240.0,104230.0,0.30258882]
[1748868692118,1.88626669,104240.0,104230.0,0.30258882]
[1748868692922,1.19835987,104240.0,104230.0,0.30258882]
[1748868693125,1.22905987,104240.0,104230.0,0.30258882]
[1748868693324,1.22905987,104240.0,104230.0,0.01670072]
[1748868693627,1.22905987,104240.0,104230.0,0.01650072]
[1748868693628,1.39285987,104240.0,104230.0,0.01650072]
[1748868693818,1.39285987,104240.0,104230.0,0.01670072]
[1748868694623,1.39285987,104240.0,104230.0,0.01650072]
[1748868694821,1.39285987,104240.0,104230.0,0.01670072]
[1748868696617,1.78142821,104240.0,104230.0,0.01670072]
[1748868698017,1.68142821,104240.0,104230.0,0.01670072]
[1748868699016,1.78142821,104240.0,104230.0,0.01670072]
[1748868699321,1.29285987,104240.0,104230.0,0.01670072]
[1748868699625,1.39285987,104240.0,104230.0,0.01670072]
[1748868700920,1.69262542,104240.0,104230.0,0.01670072]
[1748868701623,1.39285987,104240.0,104230.0,0.01670072]
[1748868702124,1.39285987,104240.0,104230.0,0.01650072]
[1748868702716,1.39285987,104240.0,104230.0,0.01670072]
[1748868704025,1.78142821,104240.0,104230.0,0.01670072]
[1748868706517,1.63408768,104240.0,104230.0,0.01670072]
[1748868706724,1.78142821,104240.0,104230.0,0.01670072]
[1748868709030,1.39285987,104240.0,104230.0,0.01670072]
[1748868709818,1.29285987,104240.0,104230.0,0.01670072]
[1748868711425,1.69262523,104240.0,104230.0,0.01670072]
[1748868713227,1.69262523,104240.0,104230.0,0.01650072]
[1748868713432,1.69262523,104240.0,104230.0,0.01670072]
[1748868715226,1.74262523,104240.0,104230.0,0.01670072]
[1748868715634,1.74262523,104240.0,104230.0,0.01650072]
[1748868715820,1.74262523,104240.0,104230.0,0.01670072]
[1748868717227,1.69262523,104240.0,104230.0,0.01670072]
[1748868722325,2.13530523,104240.0,104230.0,0.01670072]
[1748868727939,2.49610523,104240.0,104230.0,0.01670072]
[1748868732036,2.05342523,104240.0,104230.0,0.01670072]
[1748868733152,2.05342523,104240.0,104230.0,0.01650072]
[1748868733346,2.05342523,104240.0,104230.0,0.01670072]
[1748868734244,1.75365987,104240.0,104230.0,0.01670072]
[1748868737650,2.05350153,104240.0,104230.0,0.01670072]
[1748868738552,1.75365987,104240.0,104230.0,0.01670072]
[1748868740255,1.60631934,104240.0,104230.0,0.01670072]
[1748868740458,1.75365987,104240.0,104230.0,0.01670072]
[1748868744248,2.14222821,104240.0,104230.0,0.01670072]
[1748868745155,2.43707037,104240.0,104230.0,0.01670072]
[1748868745550,2.43707037,104240.0,104230.0,0.01650072]
[1748868745962,2.43707037,104240.0,104230.0,0.01670072]
[1748868747159,2.14228557,104240.0,104230.0,0.01670072]
[1748868748265,1.75371723,104240.0,104230.0,0.01670072]
[1748868752858,1.80371723,104240.0,104230.0,0.01670072]
[1748868756660,1.31151723,104240.0,104230.0,2e-08]
[1748868756862,0.1918148,104220.0,104210.0,0.0976]
[1748868757167,1.37082096,104220.0,104210.0,0.0976]
[1748868757362,1.46532096,104220.0,104210.0,0.0978]
[1748868757670,1.5553566,104220.0,104210.0,0.0978]
[1748868758059,1.5553566,104220.0,104210.0,0.0998]
[1748868758259,1.5553566,104220.0,104210.0,0.1018]
[1748868758665,1.56571346,104220.0,104210.0,0.1018]
[1748868758864,1.26566955,104220.0,104210.0,0.1018]
[1748868759164,1.26666955,104220.0,104210.0,0.0998]
[1748868759369,1.26766955,104220.0,104210.0,0.0978]
[1748868760171,1.25731269,104220.0,104210.0,0.0978]
[1748868760358,1.5573566,104220.0,104210.0,0.0978]
[1748868760869,1.63385246,104220.0,104210.0,0.0978]
[1748868764470,1.33380855,104220.0,104210.0,0.0978]
[1748868764874,1.63367677,104220.0,104210.0,0.0978]
[1748868769178,1.7810929,104220.0,104210.0,0.0978]
[1748868770279,1.78534244,104220.0,104210.0,0.0978]
[1748868775380,1.7810929,104220.0,104210.0,0.0978]
[1748868776584,1.78534244,104220.0,104210.0,0.0978]
[1748868778287,1.49052842,104220.0,104210.0,0.0978]
[1748868778483,1.68534244,104220.0,104210.0,0.0978]
[1748868783592,1.6810929,104220.0,104210.0,0.0978]
[1748868783893,1.6810929,104220.0,104210.0,0.0648]
[1748868784489,1.68534244,104220.0,104210.0,0.0648]
[1748868784690,1.53793543,104220.0,104210.0,0.2866332]
[1748868785488,1.53368589,104220.0,104210.0,0.2866332]
[1748868786090,1.38627888,104220.0,104210.0,0.2866332]
[1748868786393,1.53368589,104220.0,104210.0,0.2866332]
[1748868786596,1.53793543,104220.0,104210.0,0.2866332]
[1748868788693,1.53793543,104220.0,104210.0,0.2864332]
[1748868791305,1.53793543,104220.0,104210.0,0.0946]
[1748868791501,1.53793543,104220.0,104210.0,0.2864332]
[1748868793998,1.53793543,104220.0,104210.0,0.87612021]
[1748868793999,1.53894315,104220.0,104210.0,0.87612021]
[1748868794206,1.68635016,104220.0,104210.0,0.87612021]
[1748868794605,1.4470324,104220.0,104210.0,0.7287132]
[1748868795001,1.23701767,104220.0,104210.0,0.7287132]
[1748868795713,1.24126721,104220.0,104210.0,0.7287132]
[1748868796609,1.23701767,104220.0,104210.0,0.7287132]
[1748868797812,1.44681266,104220.0,104210.0,0.7287132]
[1748868798513,1.44681266,104220.0,104210.0,0.87612021]
[1748868803415,1.44681266,104220.0,104210.0,0.7287132]
[1748868803821,1.24126721,104220.0,104210.0,0.7287132]
[1748868804120,1.24126721,104220.0,104210.0,0.7285932]
[1748868806622,1.45096368,104220.0,104210.0,0.7285932]
[1748868808530,1.09016368,104220.0,104210.0,0.7285932]
[1748868812924,0.94275667,104220.0,104210.0,0.7285932]
[1748868813131,0.94275667,104220.0,104210.0,0.87600021]
[1748868813327,1.09016368,104220.0,104210.0,0.87600021]
[1748868814032,0.88046721,104220.0,104210.0,0.87600021]
[1748868816732,1.09016368,104220.0,104210.0,0.87600021]
[1748868817940,1.08591414,104220.0,104210.0,0.87600021]
[1748868818736,1.08591414,104220.0,104210.0,0.40384021]
[1748868819043,1.09016368,104220.0,104210.0,0.6671732]
[1748868819240,1.09016368,104220.0,104210.0,0.6673732]
[1748868819431,1.09016368,104220.0,104210.0,0.6998732]
[1748868820142,1.08591414,104220.0,104210.0,0.6998732]
[1748868820342,1.08591414,104220.0,104210.0,0.84728021]
[1748868822944,0.93850713,104220.0,104210.0,0.84728021]
[1748868823133,1.08591414,104220.0,104210.0,0.84728021]
[1748868823336,1.08591414,104220.0,104210.0,0.87928021]
[1748868825538,0.93850713,104220.0,104210.0,0.87928021]
[1748868825938,1.08591414,104220.0,104210.0,0.87928021]
[1748868827750,1.08591414,104220.0,104210.0,0.43724021]
[1748868828049,1.08591414,104220.0,104210.0,0.87920021]
[1748868831033,0.68189233,104220.0,104210.0,0.87920021]
[1748868831238,0.28819233,104220.0,104210.0,0.43724021]
[1748868831438,0.28819233,104220.0,104210.0,1.13000722]
[1748868831848,0.28819233,104220.0,104210.0,0.98260021]
[1748868832953,0.28719233,104220.0,104210.0,0.98460021]
[1748868833249,0.29144187,104220.0,104210.0,0.98460021]
[1748868833944,0.0807454,104220.0,104210.0,0.98660021]
[1748868834145,0.0807454,104220.0,104210.0,1.08255621]
[1748868834955,0.2725601,104220.0,104210.0,1.08255621]
[1748868835640,0.00424954,104220.0,104210.0,1.44335621]
[1748868836254,1.64281289,104230.0,104220.0,0.1918148]
[1748868836451,1.28201289,104230.0,104220.0,0.43052181]
[1748868836956,0.51500028,104230.0,104220.0,0.57792882]
[1748868837251,0.30955335,104230.0,104220.0,0.57792882]
[1748868837551,0.38592358,104230.0,104220.0,0.57892882]
[1748868837954,0.35312358,104230.0,104220.0,0.67487682]
[1748868838453,0.34887404,104230.0,104220.0,0.67587682]
[1748868839655,0.34887404,104230.0,104220.0,0.57992882]
[1748868840147,0.10911394,104230.0,104220.0,0.57992882]
[1748868840347,0.07651394,104230.0,104220.0,1.03667682]
[1748868840653,0.00014371,104230.0,104220.0,1.03667682]
[1748868846454,0.00439325,104230.0,104220.0,1.03667682]
[1748868846655,0.00439325,104230.0,104220.0,0.94072882]
[1748868849150,0.00439325,104230.0,104220.0,1.30152882]
[1748868850150,0.00439325,104230.0,104220.0,1.74320882]
[1748868850458,0.00014371,104230.0,104220.0,1.74320882]
[1748868851756,0.00014371,104230.0,104220.0,1.84660882]
[1748868852759,0.03194371,104230.0,104220.0,1.84660882]
[1748868852963,0.22374011,104230.0,104220.0,1.0067148]
[1748868853261,0.28714011,104230.0,104220.0,1.69916181]
[1748868853766,0.09959325,104230.0,104220.0,1.69916181]
[1748868853964,0.29138965,104230.0,104220.0,1.69916181]
[1748868854768,0.29138965,104230.0,104220.0,1.15412181]
[1748868855068,0.29138965,104230.0,104220.0,1.69916181]
[1748868855361,0.29138955,104230.0,104220.0,1.84656882]
[1748868855563,0.09534371,104230.0,104220.0,1.84676882]
[1748868856269,0.28714001,104230.0,104220.0,1.84676882]
[1748868856660,0.29138955,104230.0,104220.0,1.84676882]
[1748868857968,0.09959325,104230.0,104220.0,1.84676882]
[1748868858663,0.09534371,104230.0,104220.0,1.84676882]
[1748868861571,0.43454702,104230.0,104220.0,0.1940148]
[1748868861774,0.43879656,104230.0,104220.0,0.34142181]
[1748868862070,0.43879656,104230.0,104220.0,0.1940148]
[1748868862275,0.43879656,104230.0,104220.0,0.2970948]
[1748868862574,0.64849303,104230.0,104220.0,0.88626181]
[1748868862776,0.64849303,104230.0,104220.0,0.88606181]